[Event "DFMMLV 2017"]
[Site "Braunfels"]
[Date "2017.06.15"]
[Round "1"]
[White "Hartmann, Cora"]
[Black "Braun, Kristin"]
[Result "1-0"]
[ECO "B52"]
[WhiteElo "1788"]
[BlackElo "1860"]
[Annotator "NA"]
[PlyCount "75"]
[EventDate "2017.??.??"]
[EventType "team-tourn"]
[EventCountry "GER"]
[SourceTitle "playchess.com"]
[Source "ChessBase"]
[SourceQuality "1"]
[TimeControl "40/5400+30:1800+30"]

1. e4 {[%emt 0:00:00]} c5 {[%emt 0:00:04]} 2. Nf3 {[%emt 0:00:00]} d6 {[%emt 0:00:02]} 3. Bb5+ {[%emt 0:00:00]} Bd7 {[%emt 0:00:38]} 4. Bxd7+ {[%emt 0:00:00]} Qxd7 {[%emt 0:00:33]} 5. c4 {[%emt 0:01:17]} Qg4 {[%emt 0:16:46] LiveBook: 23 Games B52: Sicilian: Moscow Variation with 3...Bd7} (5... Nf6 6. Nc3 g6 7. d4 cxd4 8. Nxd4 Bg7 9. f3 Qc7 10. b3 Qa5 11. Bd2 Nc6 12. Nd5 Qd8 13. Bc3 e6 14. Nxc6 bxc6 {½-½ (30) Ni,H (2674)-Li,C (2720) China 2017}) 6. O-O {[%emt 0:27:11]} Qxe4 {[%emt 0:02:15]} 7. Qb3 $146 {[%emt 0:02:10]} ({Predecessor:} 7. d4 Nd7 8. Nc3 Qc6 9. Re1 a6 10. Bf4 Ngf6 11. dxc5 Nxc5 12. Nd4 Qd7 13. Bg5 O-O-O 14. b4 Ne6 15. Nxe6 fxe6 {1-0 (31) Svetushkin,D (2582)-Galoyan,L (2251) Yerevan 2014}) 7... Qc6 {[%emt 0:03:26]} 8. Nc3 {[%emt 0:02:33]} Nf6 {[%emt 0:06:03]} 9. Re1 {[%emt 0:03:13]} e6 {[%emt 0:02:38]} 10. d4 {[%emt 0:00:35]} cxd4 {[%emt 0:01:21]} 11. Nxd4 {[%emt 0:00:23]} Qd7 $1 {[%emt 0:02:01]} 12. Nf5 {[%emt 0:12:42]} (12. Bf4 $16) 12... Nc6 {[%emt 0:06:57]} 13. Nb5 {[%emt 0:01:35]} a6 $1 {[%emt 0:04:29]} 14. Nbxd6+ {[%emt 0:02:03]} Bxd6 {[%emt 0:01:31]} 15. Nxg7+ {[%emt 0:00:08]} Kf8 {[%emt 0:12:53]} 16. Bh6 {[%emt 0:02:07]} Ng4 {[%emt 0:04:12]} 17. Qh3 {[%emt 0:06:01]} Bxh2+ {[%emt 0:00:34]} 18. Kf1 {[%emt 0:00:44]} Nxh6 $2 {[%emt 0:03:50] [#]} (18... Nce5 19. Rad1 Qa4) 19. Qxh6 $4 {[%emt 0:04:07]} (19. Rad1 $1 $18 {[%cal Rd1d7] was the only winning move.} Be5 20. Rxd7 Bxg7 21. Rxb7) 19... Qd3+ {[%emt 0:00:55]} 20. Re2 {[%emt 0:00:07]} Qg6 {[%emt 0:00:40]} 21. Nxe6+ {[%emt 0:03:18]} Kg8 {[%emt 0:00:09]} 22. Qxh2 {[%emt 0:00:31]} fxe6 {[%emt 0:01:23] [#]} 23. Re3 $18 {[%emt 0:01:16]} Qe8 {[%emt 0:16:31]} 24. Rg3+ {[%emt 0:02:24]} Kf7 {[%emt 0:01:37]} 25. Rf3+ {[%emt 0:06:46]} Kg7 {[%emt 0:01:06]} 26. Qg3+ {[%emt 0:01:26]} Qg6 {[%emt 0:01:17]} 27. Qc7+ {[%emt 0:00:24]} Kg8 {[%emt 0:03:21]} 28. Rg3 {[%emt 0:00:09]} Rb8 {[%emt 0:00:39]} 29. Re1 {[%emt 0:02:40]} Kf8 {[%emt 0:00:32]} 30. Rxg6 {[%emt 0:00:11]} hxg6 {[%emt 0:00:00]} 31. Kg1 {[%emt 0:01:31]} e5 {[%emt 0:00:24]} 32. Rxe5 {[%emt 0:01:29]} Rd8 {[%emt 0:02:18]} 33. Re1 {[%emt 0:00:11]} Rb8 {[%emt 0:00:18]} 34. g3 {[%emt 0:02:05]} Rg8 {[%emt 0:00:55]} 35. Re6 {[%emt 0:00:32]} Rg7 {[%emt 0:01:03]} 36. Qf4+ {[%emt 0:01:15]} Kg8 {[%emt 0:00:30]} 37. Rxc6 {[%emt 0:00:58]} Rf8 {[%emt 0:00:36]} 38. Rf6 {[%emt 0:00:06]} 1-0

[Event "DFMMLV 2017"]
[Site "Braunfels"]
[Date "2017.06.15"]
[Round "1"]
[White "Grund, Melanie"]
[Black "Rempel, Yana"]
[Result "1/2-1/2"]
[ECO "A40"]
[WhiteElo "1757"]
[BlackElo "2059"]
[Annotator "NA RC"]
[PlyCount "119"]
[EventDate "2017.??.??"]
[EventType "team-tourn"]
[EventCountry "GER"]
[SourceTitle "playchess.com"]
[Source "ChessBase"]
[SourceQuality "1"]
[TimeControl "40/5400+30:1800+30"]

1. d4 {[%emt 0:00:00]} g6 {[%emt 0:00:17]} 2. Nf3 {[%emt 0:00:00]} Bg7 {[%emt 0:00:10]} 3. e3 {[%emt 0:00:20]} f5 {[%emt 0:00:58] A40: Unusual replies to 1 d4} (3... d6 4. c4 e5 5. Nc3 Ne7 6. dxe5 dxe5 7. Qxd8+ Kxd8 8. Ng5 Ke8 9. h4 h6 10. Nf3 Na6 11. Nd2 Nb4 12. Ke2 {0-1 (52) Xu,Y (2516)-Lu,S (2607) Shenzhen 2016}) 4. Be2 {[%emt 0:01:35]} Nf6 {[%emt 0:00:17]} 5. c4 {[%emt 0:03:41]} O-O {[%emt 0:00:36]} 6. Nbd2 {[%emt 0:02:24]} e6 {[%emt 0:03:24]} 7. O-O {[%emt 0:03:31]} b6 $146 {[%emt 0:03:12]} ({Predecessor:} 7... Qe7 8. c5 c6 9. Nc4 d5 10. cxd6 Qf7 11. Nce5 Qe8 {1-0 (32) Morales Rosales,J-Gomez Osorio,J Benalmadena 1999}) 8. Ne5 {[%emt 0:06:48]} Bb7 {[%emt 0:05:58]} 9. Bf3 {[%emt 0:03:41]} d5 {[%emt 0:08:43]} 10. cxd5 {[%emt 0:07:15]} exd5 {[%emt 0:00:39]} 11. Be2 {[%emt 0:03:34]} c5 {[%emt 0:04:58]} 12. b3 {[%emt 0:09:07]} Ne4 {[%emt 0:04:06]} 13. Bb2 {[%emt 0:07:03]} Nd7 {[%emt 0:10:16]} 14. Nxd7 {[%emt 0:10:03]} Qxd7 {[%emt 0:00:04]} 15. Nxe4 {[%emt 0:01:03]} fxe4 {[%emt 0:03:39]} 16. Qd2 {[%emt 0:03:55]} Rac8 {[%emt 0:09:28]} 17. dxc5 {[%emt 0:04:10]} bxc5 {[%emt 0:02:54]} 18. Bxg7 {[%emt 0:04:05]} Qxg7 {[%emt 0:00:11]} 19. Rfd1 {[%emt 0:01:28]} Qe5 {[%emt 0:06:28]} 20. Bf1 {[%emt 0:07:02]} (20. f4 $5 {[%cal Rf4e5]} exf3 21. Bxf3 $11) 20... Rf6 {[%emt 0:10:19]} 21. Rac1 {[%emt 0:02:52]} Qe7 {[%emt 0:10:25]} ({Black should play} 21... Rcf8 $1 $15 22. Rxc5 Rxf2 23. Qxf2 Rxf2 24. Kxf2 Qb2+ 25. Kg1 Qxa2) 22. Rc2 {[%emt 0:02:43]} Rd8 {[%emt 0:01:47]} 23. Qc3 {[%emt 0:01:21]} Rc6 {[%emt 0:00:07]} 24. Qb2 {[%emt 0:01:12]} (24. Rcd2 $5 {[%cal Rd2d5]} Rcc8 25. Be2 $11) 24... Qg7 {[%emt 0:01:02]} (24... Rc7 $11) 25. Qxg7+ {[%emt 0:01:01]} Kxg7 {[%emt 0:00:02]} 26. Rcd2 {[%emt 0:00:01]} Rc7 {[%emt 0:00:42]} 27. Bb5 {[%emt 0:00:42]} Kf6 {[%emt 0:00:17]} 28. f3 {[%emt 0:01:07]} Ke5 {[%emt 0:01:05]} 29. f4+ {[%emt 0:02:01]} Kf5 {[%emt 0:01:10]} 30. g3 {[%emt 0:01:04]} g5 {[%emt 0:00:53]} 31. Kf2 {[%emt 0:01:29]} gxf4 {[%emt 0:00:24]} 32. gxf4 {[%emt 0:00:22]} d4 {[%emt 0:01:51]} 33. exd4 {[%emt 0:00:37]} Kxf4 {[%emt 0:00:09]} 34. Ke2 {[%emt 0:00:53]} cxd4 {[%emt 0:01:54]} 35. Rxd4 {[%emt 0:01:15]} Rc2+ {[%emt 0:01:19]} 36. R4d2 {[%emt 0:00:32]} Rcxd2+ {[%emt 0:01:55]} 37. Rxd2 {[%emt 0:00:11]} Rxd2+ {[%emt 0:02:45]} 38. Kxd2 {[%emt 0:00:12]} Kf3 {[%emt 0:00:25]} 39. Ke1 {[%emt 0:00:26]} h5 $2 {[%emt 0:01:04]} (39... Ke3 $17) 40. Be2+ {[%emt 0:01:06]} Kg2 {[%emt 0:30:19]} 41. Bxh5 {[%emt 0:30:10]} Kxh2 {[%emt 0:00:01]} 42. Kf2 {[%emt 0:00:08]} a5 {[%emt 0:02:41]} 43. Ke3 {[%emt 0:00:44]} Bd5 {[%emt 0:00:27]} 44. Bd1 {[%emt 0:01:22]} Kg3 {[%emt 0:00:00]} 45. Bc2 {[%emt 0:00:00]} a4 {[%emt 0:00:00]} 46. bxa4 {[%emt 0:00:00]} Bxa2 {[%emt 0:00:00]} 47. Bxe4 {[%emt 0:00:00]} Be6 {[%emt 0:00:00]} 48. a5 {[%emt 0:00:00]} Bc8 {[%emt 0:00:00]} 49. Ba8 {[%emt 0:00:00]} Ba6 {[%emt 0:00:00]} 50. Ke4 {[%emt 0:00:00]} Bf1 {[%emt 0:00:00]} 51. Ke5 {[%emt 0:00:00]} Be2 {[%emt 0:00:00]} 52. Bb7 {[%emt 0:00:00]} Bf1 {[%emt 0:00:00]} 53. Ke6 {[%emt 0:00:00]} (53. Kd4 $142 Kf4 54. Bc6 Kf5 55. Bd5 Ba6 56. Bc4 Bc8 57. Kc5 Ke4 58. Bb5) 53... Kf4 {[%emt 0:00:00]} 54. Kf6 {[%emt 0:00:00]} Bc4 {[%emt 0:00:00]} 55. Ke7 $2 {[%emt 0:00:00]} (55. Bg2 $18 {has better winning chances.} Kg3 56. Be4) 55... Ke5 {[%emt 0:00:00]} 56. Kd7 $16 {[%emt 0:00:00]} Bf1 {[%emt 0:00:00]} 57. Kc7 {[%emt 0:00:00]} Be2 {[%emt 0:00:00]} 58. Bc6 {[%emt 0:00:00]} Bf1 {[%emt 0:00:00]} 59. Kb6 {[%emt 0:00:00]} Kd6 {[%emt 0:00:00]} 60. Bb5 1/2-1/2

[Event "DFMMLV 2017"]
[Site "Braunfels"]
[Date "2017.06.15"]
[Round "1"]
[White "Landenberger, Anja Kathrin"]
[Black "Zabarska, Natalia"]
[Result "1-0"]
[ECO "A80"]
[WhiteElo "1544"]
[BlackElo "1825"]
[Annotator "NA"]
[PlyCount "71"]
[EventDate "2017.??.??"]
[EventType "team-tourn"]
[EventCountry "GER"]
[SourceTitle "playchess.com"]
[Source "ChessBase"]
[SourceQuality "1"]
[TimeControl "40/5400+30:1800+30"]

1. d4 {[%emt 0:00:48]} f5 {[%emt 0:00:19]} 2. Nf3 {[%emt 0:00:21]} Nf6 {[%emt 0:00:26]} 3. Bf4 {[%emt 0:01:15]} e6 {[%emt 0:01:32]} 4. e3 {[%emt 0:01:08]} d5 {[%emt 0:01:30]} 5. Ne5 {[%emt 0:05:01]} Be7 {[%emt 0:13:28]} 6. Nd2 {[%emt 0:01:57]} O-O {[%emt 0:05:03]} 7. Be2 {[%emt 0:09:32]} Bd7 {[%emt 0:03:44]} 8. O-O {[%emt 0:02:42]} Be8 {[%emt 0:01:03]} 9. c4 {[%emt 0:09:50]} c6 {[%emt 0:07:22]} 10. Qb3 {[%emt 0:17:20]} Nbd7 {[%emt 0:11:59]} 11. cxd5 {[%emt 0:29:06]} exd5 {[%emt 0:11:54]} 12. Qxb7 {[%emt 0:01:57]} Rb8 {[%emt 0:00:18]} 13. Qa6 {[%emt 0:00:12]} Rxb2 $18 {[%emt 0:04:50]} (13... Nxe5 $14 14. Bxe5 (14. dxe5 Nd7 $11) 14... Rxb2) 14. Nxc6 {[%emt 0:00:42]} Nb8 {[%emt 0:07:30]} 15. Nxb8 {[%emt 0:02:21]} Rxd2 {[%emt 0:01:24]} 16. Bb5 {[%emt 0:01:25]} Bxb5 {[%emt 0:06:01]} 17. Qxb5 {[%emt 0:00:09]} Bd6 {[%emt 0:03:22]} 18. Nc6 {[%emt 0:02:25]} Qd7 {[%emt 0:02:11]} 19. Bxd6 {[%emt 0:02:56]} Qxd6 {[%emt 0:00:02]} 20. Ne5 {[%emt 0:00:08]} Rb8 {[%emt 0:03:44]} 21. Qa5 {[%emt 0:01:42]} Rbb2 {[%emt 0:07:31]} 22. Qxa7 {[%emt 0:00:44]} h6 {[%emt 0:00:48]} 23. Qf7+ {[%emt 0:00:39]} Kh7 {[%emt 0:00:06]} 24. Qg6+ {[%emt 0:00:35]} Kg8 {[%emt 0:00:08]} 25. Nf7 {[%emt 0:02:22]} Qc7 {[%emt 0:01:22]} 26. Nxh6+ {[%emt 0:00:17]} Kf8 {[%emt 0:01:06]} 27. Rac1 {[%emt 0:01:13]} Rdc2 {[%emt 0:01:24]} 28. Rxc2 {[%emt 0:00:18]} Rxc2 {[%emt 0:00:02]} 29. Nxf5 {[%emt 0:00:30]} Ne4 {[%emt 0:01:06]} 30. Ng3 {[%emt 0:01:09]} Rc1 {[%emt 0:01:21]} 31. Qf5+ {[%emt 0:01:28]} Ke8 {[%emt 0:01:33]} 32. Qe5+ {[%emt 0:00:52]} Qxe5 {[%emt 0:00:59]} 33. dxe5 {[%emt 0:00:05]} Rc2 {[%emt 0:00:14]} 34. Nxe4 {[%emt 0:00:22]} dxe4 {[%emt 0:00:02]} 35. Ra1 {[%emt 0:00:19]} Ke7 {[%emt 0:00:05]} 36. a4 {[%emt 0:00:12]} 1-0

[Event "DFMMLV 2017"]
[Site "Braunfels"]
[Date "2017.06.15"]
[Round "1"]
[White "Brender, Biserka"]
[Black "Bethge, Johanna"]
[Result "0-1"]
[ECO "D04"]
[WhiteElo "1231"]
[BlackElo "1668"]
[Annotator "NA RC"]
[PlyCount "132"]
[EventDate "2017.??.??"]
[EventType "team-tourn"]
[EventCountry "GER"]
[SourceTitle "playchess.com"]
[Source "ChessBase"]
[SourceQuality "1"]
[TimeControl "40/5400+30:1800+30"]

1. d4 {[%emt 0:00:00]} d5 {[%emt 0:00:07]} 2. Nf3 {[%emt 0:00:00]} Nf6 {[%emt 0:00:21]} 3. e3 {[%emt 0:01:30]} Nbd7 {[%emt 0:02:57]} 4. c4 {[%emt 0:00:39]} e6 {[%emt 0:00:30]} 5. a3 {[%emt 0:01:19]} c5 {[%emt 0:04:08]} 6. Nc3 {[%emt 0:02:14]} Nb6 {[%emt 0:03:34]} 7. cxd5 {[%emt 0:01:21]} Nbxd5 {[%emt 0:00:30]} 8. Bb5+ {[%emt 0:00:28]} Bd7 {[%emt 0:00:48]} 9. Bxd7+ {[%emt 0:00:05]} Qxd7 {[%emt 0:03:54]} 10. Ne5 {[%emt 0:02:03]} Nxc3 {[%emt 0:07:59]} 11. bxc3 {[%emt 0:02:15]} Qb5 {[%emt 0:03:46]} 12. c4 {[%emt 0:02:08]} Qa6 {[%emt 0:00:16]} 13. O-O {[%emt 0:04:33]} Be7 {[%emt 0:00:38]} 14. Qb3 {[%emt 0:09:25]} O-O {[%emt 0:11:34]} 15. a4 {[%emt 0:06:43]} Rfd8 {[%emt 0:07:26]} 16. Ba3 {[%emt 0:02:58]} Rac8 {[%emt 0:01:58]} 17. Rfd1 {[%emt 0:06:08]} g6 {[%emt 0:09:04]} 18. Rab1 {[%emt 0:01:20]} b6 {[%emt 0:00:41]} 19. dxc5 {[%emt 0:05:37]} Rxd1+ {[%emt 0:01:06]} 20. Rxd1 {[%emt 0:00:54]} Bxc5 {[%emt 0:02:56]} 21. Bxc5 {[%emt 0:02:08]} Rxc5 {[%emt 0:02:29]} 22. Rd8+ {[%emt 0:03:52]} Kg7 {[%emt 0:00:07]} 23. f4 {[%emt 0:02:37]} Qa5 {[%emt 0:05:03]} 24. Rd1 {[%emt 0:10:00]} Rc7 {[%emt 0:08:10]} 25. h3 {[%emt 0:02:31]} Ne4 {[%emt 0:03:16]} 26. Kh2 {[%emt 0:09:21]} Qc3 {[%emt 0:02:07]} 27. Qxc3 {[%emt 0:06:34]} Nxc3 {[%emt 0:00:06]} 28. Ra1 {[%emt 0:03:44]} f6 {[%emt 0:01:21]} 29. Nf3 {[%emt 0:01:09]} Rxc4 {[%emt 0:00:24]} 30. a5 {[%emt 0:00:49]} Rc7 {[%emt 0:04:11]} 31. axb6 {[%emt 0:00:50]} axb6 {[%emt 0:00:06]} 32. Ra6 {[%emt 0:01:14]} Rb7 {[%emt 0:01:05]} 33. Nd4 {[%emt 0:00:35]} Kf7 {[%emt 0:01:48]} 34. g4 {[%emt 0:01:48]} Nd5 {[%emt 0:01:09]} 35. Nb5 {[%emt 0:00:37]} Ke7 {[%emt 0:01:30]} 36. Na7 {[%emt 0:01:12]} Kd7 {[%emt 0:01:44]} 37. e4 {[%emt 0:00:58]} Nxf4 {[%emt 0:00:19]} 38. Kg3 {[%emt 0:00:14]} Nd3 {[%emt 0:00:49]} 39. Ra3 {[%emt 0:00:41]} Nc5 {[%emt 0:00:18]} 40. Kf3 {[%emt 0:00:44]} e5 {[%emt 0:33:05]} 41. Nb5 {[%emt 0:32:00]} Ke7 {[%emt 0:02:50]} 42. h4 {[%emt 0:00:40]} Rd7 {[%emt 0:01:06]} 43. Ke2 {[%emt 0:00:00]} Nxe4 {[%emt 0:00:00]} 44. Kf3 {[%emt 0:00:00]} Nd6 {[%emt 0:00:00]} 45. Na7 {[%emt 0:00:00]} Rc7 {[%emt 0:00:00]} 46. Ra2 {[%emt 0:00:00]} Kd7 {[%emt 0:00:00]} 47. Ke2 {[%emt 0:00:00]} b5 {[%emt 0:00:00]} 48. Ra5 {[%emt 0:00:00]} Rb7 {[%emt 0:00:00]} 49. Ra6 {[%emt 0:00:00]} b4 {[%emt 0:00:00]} 50. Nc6 {[%emt 0:00:00]} Nc8 {[%emt 0:00:00]} 51. Na5 {[%emt 0:00:00]} Ra7 {[%emt 0:00:00]} 52. Rxa7+ {[%emt 0:00:00]} Nxa7 {[%emt 0:00:00]} 53. Kd3 {[%emt 0:00:00]} Nc6 {[%emt 0:00:00]} 54. Nb3 {[%emt 0:00:00]} Kd6 {[%emt 0:00:00]} 55. Ke4 {[%emt 0:00:00]} Ne7 {[%emt 0:00:00]} 56. Na5 {[%emt 0:00:00]} f5+ {[%emt 0:00:00]} 57. gxf5 {[%emt 0:00:00]} gxf5+ {[%emt 0:00:00]} 58. Kd3 {[%emt 0:00:00]} Kd5 {[%emt 0:00:00]} 59. Nb3 {[%emt 0:01:06]} f4 {[%emt 0:00:00]} 60. Nd2 {[%emt 0:01:18]} Nf5 {[%emt 0:00:00]} 61. h5 {[%emt 0:01:13]} Ng3 {[%emt 0:00:00]} 62. h6 {[%emt 0:01:29]} e4+ {[%emt 0:00:00]} 63. Kc2 {[%emt 0:00:33]} Nf5 {[%emt 0:00:00]} 64. Kb3 {[%emt 0:02:31]} e3 {[%emt 0:00:00]} 65. Nf3 {[%emt 0:01:20]} Nd4+ {[%emt 0:00:00]} 66. Nxd4 {[%emt 0:00:22]} Kxd4 {[%emt 0:00:00]} 0-1